Cogmind - Beta 14 @@@ ROGUE MODE // 2024.08.26 @ 23:38:46 Player: cabin Result: Destroyed by G-34 Mercenary with Small Laser Performance ------------- Evolutions (1) 500 Regions Visited (2) 400 Robots Destroyed (7) 35 Value Destroyed (246) 246 Prototype IDs (0) 0 Alien Tech Used (0) 0 Bonus (0) 0 TOTAL SCORE: 1181 Bonus ------- None Cogmind --------- Core Integrity 0/400 Matter 221/300 Energy 99/100 System Corruption 0% Temperature Cool (6) Movement Core (50) Location -9/Materials Parts ------- > --- POWER (1) -------- (None) > --- PROPULSION (2) --- (None) > --- UTILITY (4) ------ Disposable Heat Sink Terrain Scan Processor Improved Terrain Scan Processor Improved Terrain Scan Processor > --- WEAPON (2) ------- (None) > --- INVENTORY (5) ---- Ion Engine Faulty Heavy Ion Engine Cryofiber Web Large Battery (200) Large Battery (200) Peak State ------------ > --- POWER ------------ Light Nuclear Core > --- PROPULSION ------- Light Treads > --- UTILITY ---------- Heat Sink Improved Heat Sink Disposable Heat Sink > --- WEAPON ----------- Light Assault Rifle Light Cannon > --- INVENTORY -------- Ion Engine Ion Engine Large Battery Large Battery Grenade Launcher [Rating: 12] Favorites ----------- Power Light Nuclear Core Engine Light Ion Engine Power Core Light Nuclear Core Propulsion Light Treads Treads Light Treads Utility Heat Sink Device Heat Sink Processor Improved Terrain Scan Processor Weapon Light Assault Rifle Ballistic Gun Light Assault Rifle Ballistic Cannon Light Cannon Launcher Grenade Launcher Build | -11 -10 -9 ------- Run | Yrd Mat Mat Slots Evolved 2 | . . 2 Power . | . . . Propulsion . | . . . Utility 2 | . . 2 Weapon . | . . . Parts Attached 15 | 5 4 6 Power 3 | 1 1 1 Engine 2 | 1 . 1 Core 1 | . 1 . Reactor . | . . . Propulsion 2 | 2 . . Treads 2 | 2 . . Leg . | . . . Wheel . | . . . Hover . | . . . Flight . | . . . Utility 6 | . 2 4 Device 3 | . 2 1 Storage . | . . . Processor 3 | . . 3 Hackware . | . . . Protection . | . . . Artifact . | . . . Weapon 4 | 2 1 1 Energy Gun . | . . . Energy Cannon . | . . . Ballistic Gun 2 | 2 . . Ballistic Cannon 1 | . 1 . Launcher 1 | . . 1 Special Weapon . | . . . Impact Weapon . | . . . Slashing Weapon . | . . . Piercing Weapon . | . . . Special Melee Weapon . | . . . Unidentified Prototypes . | . . . Parts Lost 11 | . 3 8 Power 3 | . 1 2 Propulsion 2 | . 1 1 Utility 2 | . . 2 Weapon 4 | . 1 3 Highest Loss Streak 5 | . 1 5 To Critical Strikes . | . . . Average Slot Usage (%) 71 | . 79 57 Engine 5 | . 6 3 Core 6 | . 7 4 Treads 15 | . 21 4 Device 18 | . 15 24 Processor 2 | . . 7 Ballistic Gun 17 | . 24 5 Ballistic Cannon 4 | . 3 7 Peak Build Rating 12 | 5 10 12 Average Rating 7 | 3 7 9 On Entrance 5 | . 5 10 Naked Turns . | . . . Heaviest Build 12 | 6 11 12 Greatest Support 40 | 40 40 20 Greatest Overweight (x) 3 | . . 3 Average Overweight (x) . | . . . Largest Inventory Capacity 5 | 5 5 5 Average Capacity 5 | 5 5 5 Most Carried 5 | 1 5 5 Average Carried 3 | . 2 4 Final Capacity 5 | 5 5 5 Final Carried 5 | 1 5 5 Class Distribution -------------------- 100% | Mutant Dominant Class ---------------- Mutant | -10/Materials Mutant | -9/Materials Resources | -11 -10 -9 ----------- Run | Yrd Mat Mat Matter Collected 425 | 231 156 38 Remotely . | . . . Salvage Created 236 | . 169 67 Parts 12 | . 7 5 Haulers Intercepted . | . . . Recyclers Shooed 1 | . 1 . Parts Field Recycled . | . . . Retrieved Matter . | . . . Parts Self-Destructed . | . . . Prevented . | . . . Kills | -11 -10 -9 ------- Run | Yrd Mat Mat Combat Hostiles Destroyed 6 | . 4 2 Guns 3 | . 3 . Cannons 2 | . 1 1 AOE 1 | . . 1 Classes Destroyed 2 | . 1 1 Watcher 1 | . . 1 Grunt 6 | . 4 2 Best Kill Streak 2 | . 1 2 Combat Bots Only 1 | . 1 1 Max Kills in Single Turn 2 | . 1 2 Gunslinging . | . . . Exploded 1 | . . 1 Melee . | . . . Uniques/NPCs Destroyed . | . . . Combat | -11 -10 -9 -------- Run | Yrd Mat Mat Hostile Shots Fired 105 | . 54 51 Missed 30 | . 15 15 Damage Taken 1374 | . 533 841 Core 472 | . 71 401 Absorbed by Shields . | . . . Core Remaining (%) 85 | 100 71 . Volleys Fired 41 | . 29 12 Largest 2 | . 2 2 Hottest 65 | . 55 65 Shots Fired 78 | . 57 21 Gun 57 | . 51 6 Cannon 18 | . 6 12 Launcher 3 | . . 3 Special . | . . . Kinetic 75 | . 57 18 Thermal . | . . . Explosive 3 | . . 3 Electromagnetic . | . . . Robot Hit Streak 11 | . 11 7 Robot Miss Streak 4 | . 4 4 Penetration Max . | . . . Secondary Targets . | . . . Shots Hit Robots 49 | . 37 12 Core Hits 22 | . 14 8 Critical Kills . | . . . Critical Parts Destroyed . | . . . Critical Strikes . | . . . Melee Attacks . | . . . Impact . | . . . Slashing . | . . . Piercing . | . . . Sneak Attacks . | . . . Combat Hostiles . | . . . Follow-up Attacks . | . . . Damage Inflicted 712 | . 404 308 Guns 364 | . 340 24 Cannons 168 | . 64 104 Explosions 180 | . . 180 Melee . | . . . Ramming . | . . . Kinetic 532 | . 404 128 Thermal . | . . . Explosive 180 | . . 180 Electromagnetic . | . . . Impact . | . . . Slashing . | . . . Piercing . | . . . Highest Corruption . | . . . Average Corruption . | . . . Corruption Purged . | . . . Corruption Blocked . | . . . Overload Shots . | . . . Overflow Damage 11 | . . 11 Projectiles . | . . . Explosions 11 | . . 11 Melee . | . . . Knockbacks 2 | . . 2 Impact . | . . . Kinetic 2 | . . 2 Secondary . | . . . Self-Inflicted Damage 95 | . . 95 Shots 3 | . . 3 Rammed . | . . . Targets Rammed . | . . . Kicked . | . . . Crushed . | . . . Highest Temperature 33 | . 33 . Average Temperature 11 | . 11 . Received Heat Transfer 477 | . 336 141 Siege Activations . | . . . Robots Corrupted . | . . . Combat Hostiles . | . . . Parts Fried . | . . . Impact Corruptions . | . . . Robots Melted . | . . . Combat Hostiles . | . . . Parts Melted . | . . . Heat Transferred . | . . . Parts Sabotaged . | . . . Parts Stolen . | . . . Parts Stripped . | . . . Power Chain Reactions . | . . . Alert | -11 -10 -9 ------- Run | Yrd Mat Mat Peak Influence 137 | . 137 98 Initial 57 | . . 57 Average 61 | . 70 68 Maximum Alert Level . | . . . Low Security (%) 100 | 100 100 100 Level 1 . | . . . Level 2 . | . . . Level 3 . | . . . Level 4 . | . . . Level 5 . | . . . High Security . | . . . Max Security . | . . . Squads Dispatched 4 | . . 4 Investigation 2 | . . 2 Extermination . | . . . Reinforcement 2 | . . 2 Assault . | . . . Garrison . | . . . Intercept . | . . . Searches Triggered . | . . . Construction Impeded . | . . . Haulers Reinforced . | . . . Active Scanning Responses . | . . . Cargo Convoy Interrupts . | . . . Stealth | -11 -10 -9 --------- Run | Yrd Mat Mat Distress Signals 3 | . 2 1 Communications Jammed . | . . . Distress Signals . | . . . Times Spotted 25 | . 10 15 Peak Tracking Total 10 | . 5 10 Tactical Retreats 2 | . 2 . Traps | -11 -10 -9 ------- Run | Yrd Mat Mat Traps Triggered 2 | . . 2 Indirectly . | . . . Trap Hack Attempts . | . . . Triggered . | . . . Disarmed . | . . . Reprogrammed . | . . . Reused . | . . . Traps Extracted . | . . . Installed . | . . . Triggered . | . . . Machines | -11 -10 -9 ---------- Run | Yrd Mat Mat Machines Disabled . | . . . Max in Single Turn . | . . . Machines Repaired . | . . . Machines Dismantled . | . . . Machines Sabotaged . | . . . Overloaded Fab Kills . | . . . Hacking | -11 -10 -9 --------- Run | Yrd Mat Mat Machines Accessed 2 | . 2 . Terminals 1 | . 1 . Fabricators . | . . . Repair Stations . | . . . Recycling Units 1 | . 1 . Scanalyzers . | . . . Garrison Access . | . . . Total Hacks 4 | . 4 . Successful 3 | . 3 . Failed 1 | . 1 . Catastrophic . | . . . Database Lockouts . | . . . Manual . | . . . Terminals 2 | . 2 . Fabricators . | . . . Repair Stations . | . . . Recycling Units 2 | . 2 . Scanalyzers . | . . . Garrison Access . | . . . Terminal Hacks 1 | . 1 . Registered Components 1 | . 1 . Fabricator Hacks . | . . . Repair Station Hacks . | . . . Recycling Unit Hacks 2 | . 2 . Retrieve Components 2 | . 2 . Scanalyzer . | . . . Garrison Access Hacks . | . . . Unauthorized Hacks . | . . . Terminals . | . . . Fabricators . | . . . Repair Stations . | . . . Recycling Units . | . . . Scanalyzers . | . . . Garrison Access . | . . . Data Cores Recovered . | . . . Used . | . . . Hacking Detections 2 | . 2 . Full Trace Events . | . . . Feedback Events . | . . . Feedback Blocked . | . . . Robot Schematics Acquired . | . . . Robots Built . | . . . Authchips . | . . . Time . | . . . Total Robot Build Rating . | . . . Part Schematics Acquired . | . . . Parts Built . | . . . Authchips . | . . . Time . | . . . Total Part Build Rating . | . . . Parts Repaired . | . . . Time . | . . . Parts Recycled . | . . . Recycled Matter . | . . . Retrieved Matter . | . . . Retrieved Components . | . . . Parts Scanalyzed . | . . . Part Schematics Acquired . | . . . Parts Damaged . | . . . Bothacking | -11 -10 -9 ------------ Run | Yrd Mat Mat Used RIF Installer . | . . . Robots Hacked . | . . . Non-combat . | . . . Combat . | . . . Robot Hacks Applied . | . . . Relay Couplers Released . | . . . Fabnet Peak Effective % . | . . . Robots Rewired . | . . . Allies Hacked . | . . . Hacks Repelled . | . . . Allies | -11 -10 -9 -------- Run | Yrd Mat Mat Total Allies . | . . . Largest Group . | . . . Highest-Rated Group . | . . . Highest-Rated Ally . | . . . Total Orders . | . . . Ally Attacks . | . . . Total Damage . | . . . Kills . | . . . Allies Corrupted . | . . . Allies Melted . | . . . Intel | -11 -10 -9 ------- Run | Yrd Mat Mat Robot Analysis Total . | . . . Derelict Logs Recovered . | . . . Drone Launches . | . . . Drone Recoveries . | . . . Exploration | -11 -10 -9 ------------- Run | Yrd Mat Mat Turns Passed 640 | 78 356 206 Spaces Moved 358 | 46 153 159 Core 118 | 3 . 115 Treads 240 | 43 153 44 Legs . | . . . Wheels . | . . . Hover . | . . . Flight . | . . . Fastest Speed 50 | 50 160 50 Average Speed 133 | 152 160 103 Slowest Speed 200 | 160 160 200 Overloaded Moves . | . . . Propulsion Burnouts . | . . . Robots Hopped . | . . . Cave-ins Triggered . | . . . Exploration Rate (%) 19 | 4 27 27 Regions Visited 2 Branch Regions . Pre-discovered Areas . | . . . Known Exits Taken . | . . . Unknown Exits Taken 2 | 1 1 . Scrap Searched . | . . . Spaces Dug . | . . . Terrain Destroyed 17 | . . 17 Melee . | . . . Projectile . | . . . AOE 17 | . . 17 Terrain Rammed . | . . . Walls Destroyed . | . . . Machines Disabled . | . . . Actions | -11 -10 -9 --------- Run | Yrd Mat Mat Total 442 | 51 212 179 Wait 22 | . 22 . Move 356 | 45 152 159 Hop . | . . . Pick Up 8 | 1 5 2 Fast Attach 12 | 5 3 4 Attach 3 | . 1 2 Detach . | . . . Swap . | . . . Drop . | . . . Fire 41 | . 29 12 Melee . | . . . Ram . | . . . Kick . | . . . Crush . | . . . Escape Stasis . | . . . Rewire . | . . . Trap . | . . . Miscellaneous . | . . . Route ------- -11/Scrapyard -10/Materials -9/Materials (discovered 1 exit: [*Min]) History --------- Turn | Location | Event 6 | -11/Scrapyard | Discovered new exit (range 16) 79 | -11/Scrapyard | Entered Materials 318 | -10/Materials | Build established: Mutant 381 | -10/Materials | Discovered new exit (range 10) 435 | -10/Materials | Entered another Materials area 435 | -9/Materials | Evolved 2 slots: Utility x2 578 | -9/Materials | Lost 3 parts (1p1n1w) 592 | -9/Materials | Core integrity fell below 50% 626 | -9/Materials | Lost 5 parts (1p2u2w) 635 | -9/Materials | Discovered new exit (range 16) 639 | -9/Materials | Core integrity fell below 20% 641 | -9/Materials | Destroyed by G-34 Mercenary with Small Laser Last Messages --------------- 00590_ Acquired Imp. Terrain Scan Processor. 00591_ The unstable cave ceiling collapses. 00591_ U-05 Engineer lays Concrete. 00593_ Acquired Cryofiber Web. 00593_ U-05 Engineer lays Concrete. 00595_ Ion Engine destroyed. 00595_ Heat Sink destroyed. 00595_ U-05 Engineer builds a Wall. 00596_ U-05 Engineer lays Concrete. 00597_ M-13 Machinist repairs L-31 Rogue. 00598_ The unstable cave ceiling collapses. 00598_ U-05 Engineer lays Concrete. 00606_ K-01 Serf collects debris. 00610_ Acquired Terrain Scan Processor. 00612_ K-01 Serf collects debris. 00635_ EXIT=FOUND 00638_ Triggered Alarm Trap. 00638_ An alarm sounds. 00638_ ALERT: Alarm triggered, dispatching investigation squad. Map ----- +----------------------------------------------------+ | ?????????????????????????????????????????????????? | | ?????????????????????????????????????????????????? | | ?????????????????????????????????????????????????? | | ?????????????????????????????????????????????????? | | ?????????????????????????????????????????????????? | | ?????????????????????????????????????????????????? | | ?????????????????????????????????????????????????? | | ?????????????????????????????????????????????????? | | ?????????????????????????????????????????????????? | | ?????????????????????????????????????????????????? | | ?????????????????????????????????????????????????? | | ?????????????????????????????????????????????????? | | ??????????????????????????????????####????##?????? | | ??????????????????????????????????# ???? #?????? | | ??????????????????????????????????# ?? #?????? | | ??????????????????????????????????# #?????? | | ??????????????????????????????????# """ #?????? | | ??????????????????????????????????# """"" #?????? | | ??????????????????????????????????# """"" #?????? | | ??????????????????????????????????# """"" #?????? | | ??????????????????????????????????# """ #?????? | | ??????????????????#########???????# #?????? | | ??????????? ##### ###+###+#####/#########+ | | ?????????? g g g | | ?????????? Y < g g ######### | | ?????????? wr @ """ # | | ?????????????????##" "####### t """ # "" | | ??????????????????#" |"! "#?????# """ # "T | | ??????????????????#"""""""#?????+ # "" | | ??????????????????#########?????# + | | ????????????????????????????????# # """ | | ????????????????????????????????##T### # """ | | ?????????????????????????????????###?# # """ | | ?????????????????????????????????????# ######### | | ?????????????????????????????????????# #??????#? | | ?????????????????????????????????????# #???? #? | | ???????????????????????????#######???# #??""" #? | | ???????????????????????????# ##### # """ #? | | ???????????????????????????# + """ ## | | ???????????????????????????# # + | | ???????????????????????????# # #? | | ???????????????????????????# ################? | | ?????????????????????????#####+#####??# [ ## | | ?????????????????????????# #??#] # | | ?????????????????????????# | #??# "T" | | ?????????????????????????# [ #??# | | ?????????????????????????# #??###+#+##### | | ?????????????????????????# ###### | | ?????????????????????????# / | | ?????????????????????????# ] ###### | +----------------------------------------------------+ Best States ------------- Heat Dissipation 52 Coolant Potential 50 Energy Generation 14 Energy Capacity 250 Matter Stores 300 Matter Capacity 300 Sight Range 16 Terrain Scan Density 285 Evasion (%) 50 Recoil Reduction 2 Item Schematics ----------------- None Robot Schematics ------------------ None Fabricated ------------ Nothing Alien Tech Used ----------------- None Achievements -------------- None Challenges ------------ None Game ------ Seed CryofiberCannonCycler Manual? 0 Play Time 00:08:22 Cumulative 14.7 hours Start 2024.08.26 @ 23:31:36 End 2024.08.26 @ 23:38:46 Sessions 1 Manual Loads 0 Difficulty Rogue Special Mode None Game No. 35 Rogue 34 Adventurer 1 Explorer 0 Win Type - Total 0 Types 0/0/0/0/0/0/0/0/0 Lore% 5 Gallery% 23 Achievement% 18 Wizard Run 0 Options --------- Layout 2 ASCII 0 Keyboard 1 Movement Numpad Keybinds 0 Fullscreen 1 Font 24/Smallcaps Map View 50x44 Zoom Use 0% Tactical HUD 1 Map Filters NONE Filters NONE Steam 1 RUN: 747292f9-1ac4-45c5-a023-21981c320512